Cogmind - Beta 13 @@@ ROGUE MODE // 2024.04.06 @ 21:03:10 Player: Vox Result: Destroyed by Fusion Bomb Trap Performance ------------- Evolutions (8) 4000 Regions Visited (13) 2600 Robots Destroyed (124) 620 Value Destroyed (3842) 3842 Prototype IDs (16) 320 Alien Tech Used (0) 0 Bonus (58) 58 TOTAL SCORE: 11440 Bonus ------- High Alert Combat Kills 58 Cogmind --------- Core Integrity 0/1450 Matter 297/300 Energy 96/100 System Corruption 18% Temperature Cool (0) Movement Core (50) Location -2/Research Parts ------- > --- POWER (2) -------- (None) > --- PROPULSION (8) --- (None) > --- UTILITY (9) ------ (None) > --- WEAPON (4) ------- (None) > --- INVENTORY (5) ---- Improved Antigrav System Combat Linear Gravjet Advanced Signal Interpreter Improved Weapon Shielding Improved Medium Armor Plating Peak State ------------ > --- POWER ------------ Light Antimatter Reactor Micro Antimatter Reactor > --- PROPULSION ------- Hover Unit Cooled Antigrav System Antigrav Array Antigrav Array Antigrav Array > --- UTILITY ---------- Advanced Power Amplifier Advanced Sensor Array Advanced Signal Interpreter Advanced Signal Interpreter Improved Medium Armor Plating Improved Medium Armor Plating Graphene Brace Improved Hacking Suite Advanced Recalibrator > --- WEAPON ----------- Enhanced Quantum Rifle Long-range Phase Cannon Centrium Greatsword > --- INVENTORY -------- Advanced Signal Interpreter Advanced Transmission Jammer Improved Medium Armor Plating Improved Medium Armor Plating Improved Medium Armor Plating [Rating: 158] Favorites ----------- Power Ion Engine Engine Ion Engine Power Core Light Nuclear Core Reactor Light Antimatter Reactor Propulsion Armored Medium Treads Treads Armored Medium Treads Leg Aluminum Leg Wheel Armored Huge Wheel Hover Unit Improved Antigrav System Utility Advanced Targeting Computer Device Advanced Sensor Array Storage Small Storage Unit Processor Advanced Targeting Computer Hackware Improved Hacking Suite Protection Light Armor Plating Weapon Proton Cannon Energy Gun EM Pulse Gun Energy Cannon Proton Cannon Ballistic Gun Assault Rifle Ballistic Cannon Gauss Cannon Launcher Grenade Launcher Special Weapon Mining Laser Slashing Weapon Centrium Greatsword Piercing Weapon Spear Build | -11 -10 -10 -8 -7 -6 -6 -6 -5 -4 -4 -4 -3 -2 ------- Run | Yrd Mat Sub Mat Fac Fac Ext Cet Fac Fac Was Fac Res Res Slots Evolved 16 | . . . 4 2 2 . . 2 2 . . 2 2 Power 1 | . . . . . . . . . 1 . . . . Propulsion 6 | . . . 1 1 . . . 1 . . . 2 1 Utility 7 | . . . 3 1 1 . . 1 . . . . 1 Weapon 2 | . . . . . 1 . . . 1 . . . . Parts Attached 196 | 7 9 12 26 26 5 31 . 14 11 13 14 13 15 Power 22 | 1 . 1 4 3 . 6 . 1 1 1 . 4 . Engine 12 | 1 . 1 1 2 . 6 . 1 . . . . . Core 4 | . . . 3 1 . . . . . . . . . Reactor 6 | . . . . . . . . . 1 1 . 4 . Propulsion 51 | 3 4 4 7 5 1 5 . 5 . 4 5 4 4 Treads 17 | 1 2 1 4 . . . . 5 . 4 . . . Leg 13 | 2 2 3 3 3 . . . . . . . . . Wheel 8 | . . . . 2 1 5 . . . . . . . Hover 13 | . . . . . . . . . . . 5 4 4 Flight . | . . . . . . . . . . . . . . Utility 84 | 1 2 5 11 12 3 11 . 5 9 6 8 5 6 Device 22 | . . 1 2 . 1 2 . 2 . 3 7 1 3 Storage 19 | 1 . 1 1 2 . 2 . 1 8 1 1 1 . Processor 8 | . 1 . 2 . . . . 2 1 . . 1 1 Hackware 2 | . . . . 1 . . . . . . . 1 . Protection 33 | . 1 3 6 9 2 7 . . . 2 . 1 2 Artifact . | . . . . . . . . . . . . . . Weapon 39 | 2 3 2 4 6 1 9 . 3 1 2 1 . 5 Energy Gun 6 | . . 2 1 . . 1 . . . . . . 2 Energy Cannon 6 | . . . . . . . . 3 1 . . . 2 Ballistic Gun 13 | 2 1 . . 3 . 4 . . . 2 1 . . Ballistic Cannon 4 | . . . 3 . . 1 . . . . . . . Launcher 6 | . 2 . . 2 1 1 . . . . . . . Special Weapon 1 | . . . . . . 1 . . . . . . . Impact Weapon . | . . . . . . . . . . . . . . Slashing Weapon 1 | . . . . . . . . . . . . . 1 Piercing Weapon 2 | . . . . 1 . 1 . . . . . . . Special Melee Weapon . | . . . . . . . . . . . . . . Unidentified Prototypes 6 | . . . . . . . . . 1 1 1 1 2 Corrupted Parts 3 | . . . . . . . . 1 2 . . . . System Corruption 15 | . . . . . . . . 4 11 . . . . Parts Lost 89 | . 2 8 5 9 . 34 . . 8 1 . 3 19 Power 13 | . . . 2 1 . 6 . . 2 . . . 2 Propulsion 17 | . . 3 1 . . 6 . . . 1 . . 6 Utility 35 | . . 2 2 6 . 13 . . 3 . . 1 8 Weapon 24 | . 2 3 . 2 . 9 . . 3 . . 2 3 Highest Loss Streak 24 | . 1 2 3 7 . 24 . . 6 1 . 2 18 To Critical Strikes 2 | . . . . . . 2 . . . . . . . Average Slot Usage (%) 81 | . 94 86 88 90 86 69 . 60 83 10 74 76 63 Engine 6 | . 14 14 2 4 6 4 . . 3 . . . . Core 1 | . . . 5 2 . . . . . . . . . Reactor 1 | . . . . . . . . . 1 . 5 6 6 Treads 7 | . 9 5 14 . . . . 25 26 6 . . . Leg 10 | . 18 20 8 18 . . . . . . . . . Wheel 2 | . . . . 5 13 11 . . . . . . . Hover 2 | . . . . . . . . . . . 19 23 15 Device 5 | . . . 6 . 1 2 . 7 7 . 27 23 15 Storage 6 | . 14 5 7 7 6 5 . 2 13 2 . . . Processor 7 | . 2 . 14 15 13 11 . 10 11 . . 3 6 Protection 10 | . 8 11 11 16 24 16 . . . . 10 5 4 Energy Gun 2 | . . 10 . . . . . . . . . . 3 Energy Cannon 1 | . . . . . . . . 13 18 . . . 3 Ballistic Gun 5 | . 16 5 . 4 6 7 . . . . 10 7 . Ballistic Cannon 3 | . . . 15 4 . 2 . . . . . . . Launcher 4 | . 8 10 . 2 6 2 . . . . . . . Naked Turns 379 | . . 7 87 . . 51 25 6 . 105 . . 98 Heaviest Build 92 | 14 18 28 33 69 82 92 5 45 71 36 49 58 64 Greatest Support 135 | 20 40 40 60 67 56 56 3 54 135 70 70 91 97 Greatest Overweight (x) 14 | . . 1 1 1 1 4 1 . 1 . 14 . . Average Overweight (x) . | . . . . . 1 . . . . . . . . Largest Inventory Capacity 20 | 8 8 10 8 20 20 20 5 5 10 10 5 5 5 Average Capacity 8 | 7 8 7 7 11 20 18 5 5 6 7 5 5 5 Most Carried 20 | 5 8 10 8 18 20 20 5 5 5 10 5 5 5 Average Carried 7 | 4 6 5 6 9 19 12 5 4 4 6 3 4 4 Final Capacity 20 | 8 8 5 8 20 20 5 5 5 10 5 5 5 5 Final Carried 20 | 5 8 5 8 18 20 5 5 5 5 . 5 5 5 Class Distribution -------------------- 73% | Mutant 14% | Scavenger-Mutant 8% | Tank Dominant Class ---------------- Mutant | -10/Materials Mutant | -10/Subcaves Scavenger-Mutant | -8/Materials Mutant | -7/Factory Mutant | -6/Factory Mutant | -6/Extension Mutant | -6/Cetus Tank | -5/Factory Tank | -4/Factory Mutant | -4/Waste Mutant | -4/Factory Mutant | -3/Research Mutant | -2/Research Resources | -11 -10 -10 -8 -7 -6 -6 -6 -5 -4 -4 -4 -3 -2 ----------- Run | Yrd Mat Sub Mat Fac Fac Ext Cet Fac Fac Was Fac Res Res Matter Collected 4807 | 312 352 714 1011 535 22 791 . 29 464 137 142 109 189 Remotely . | . . . . . . . . . . . . . . Salvage Created 4163 | 81 427 350 907 684 12 911 . 29 529 . . 109 124 Parts 234 | 2 42 19 51 32 2 51 . 2 16 . . 10 7 Haulers Intercepted 1 | . . . 1 . . . . . . . . . . Recyclers Shooed . | . . . . . . . . . . . . . . Parts Field Recycled 12 | . . . . . . . . 6 6 . . . . Retrieved Matter 260 | . . . . . . . . 231 29 . . . . Parts Self-Destructed 10 | . . 10 . . . . . . . . . . . Prevented . | . . . . . . . . . . . . . . Kills | -11 -10 -10 -8 -7 -6 -6 -6 -5 -4 -4 -4 -3 -2 ------- Run | Yrd Mat Sub Mat Fac Fac Ext Cet Fac Fac Was Fac Res Res Combat Hostiles Destroyed 82 | . 18 16 21 14 . 5 . . 5 . . 2 1 Melee 5 | . . . . 4 . . . . . . . . 1 Guns 17 | . 4 2 . 5 . 4 . . . . . 2 . Cannons 26 | . . . 21 2 . . . . 3 . . . . AOE 32 | . 14 14 . 3 . 1 . . . . . . . Classes Destroyed 18 | 1 5 2 3 3 . 2 . . . . . . 2 Worker 11 | . 2 . 1 . 1 3 . 1 . . . . 3 Builder 8 | . 1 . . 2 . 4 . . . . . . 1 Tunneler 2 | . . . . . . 2 . . . . . . . Hauler 1 | . . . 1 . . . . . . . . . . Recycler 12 | 1 . . 4 1 . 5 . . 1 . . . . Operator 1 | . . . . . . . . . . . . . 1 Drone 1 | . . . . . . . . . . . . . 1 Watcher 8 | . 3 . 4 1 . . . . . . . . . Swarmer 13 | . 6 . 6 . . . . . . . . 1 . Grunt 34 | . 12 . 9 8 . . . . 5 . . . . Brawler 2 | . . . . 1 . 1 . . . . . . . Duelist 1 | . . . 1 . . . . . . . . . . Sentry 9 | . . . 5 3 . 1 . . . . . . . Hunter 2 | . . . . 1 . 1 . . . . . . . Programmer 2 | . . . . 1 . . . . . . . 1 . Behemoth 2 | . . . . . . 2 . . . . . . . Cobbler 1 | . . 1 . . . . . . . . . . . Subdweller 16 | . . 16 . . . . . . . . . . . Best Kill Streak 9 | 1 9 3 6 7 1 4 . 1 2 . . 1 4 Combat Bots Only 8 | . 8 3 5 6 . 2 . . 2 . . 1 1 Max Kills in Single Turn 3 | 1 3 1 2 3 1 2 . 1 1 . . 1 1 Gunslinging . | . . . . . . . . . . . . . . Exploded 3 | . 3 1 . 3 . 1 . . . . . . . Melee 1 | . . . . 1 . . . . . . . . 1 Uniques/NPCs Destroyed . | . . . . . . . . . . . . . . Combat | -11 -10 -10 -8 -7 -6 -6 -6 -5 -4 -4 -4 -3 -2 -------- Run | Yrd Mat Sub Mat Fac Fac Ext Cet Fac Fac Was Fac Res Res Hostile Shots Fired 1500 | . 54 70 138 383 . 412 4 9 103 1 . 76 250 Missed 493 | . 22 19 41 110 . 126 2 3 26 . . 42 102 Damage Taken 17325 | . 458 1242 1311 2753 . 5147 60 148 1578 45 . 808 3775 Core 3189 | . 40 168 141 370 . 769 60 28 104 . . 49 1460 Absorbed by Shields . | . . . . . . . . . . . . . . Redirected to Shielding 47 | . . . . . . . . . . . . 47 . Core Remaining (%) 65 | 100 . 16 74 47 . . 2 97 . . 90 96 . Volleys Fired 409 | 9 41 95 105 49 1 54 . 1 30 . . 15 9 Largest 4 | 2 2 2 2 2 1 3 . 2 4 . . 2 3 Hottest 300 | 40 50 100 104 83 28 128 . 150 300 . . 50 235 Shots Fired 589 | 18 45 105 152 58 1 113 . 2 54 . . 23 18 Gun 248 | 18 25 42 7 30 1 93 . . . . . 23 9 Cannon 234 | . . . 145 18 . 6 . 2 54 . . . 9 Launcher 107 | . 20 63 . 10 . 14 . . . . . . . Special . | . . . . . . . . . . . . . . Kinetic 355 | 18 25 6 145 48 1 89 . . . . . 23 . Thermal 44 | . . 9 7 . . 10 . . . . . . 18 Explosive 107 | . 20 63 . 10 . 14 . . . . . . . Electromagnetic 83 | . . 27 . . . . . 2 54 . . . . Robot Hit Streak 18 | 4 11 18 12 16 15 8 . 5 10 . . 5 6 Robot Miss Streak 5 | 1 5 2 4 2 1 5 . . 3 . . 2 3 Penetration Max 1 | . . . . . . 1 . . . . . . . Secondary Targets . | . . . . . . . . . . . . . . Shots Hit Robots 383 | 10 22 50 95 60 1 84 . 1 31 . . 14 15 Core Hits 259 | 2 37 40 42 38 2 71 . 1 16 . . 7 3 Critical Kills 2 | . . . . 1 . 1 . . . . . . . Critical Parts Destroyed . | . . . . . . . . . . . . . . Critical Strikes 13 | . . . 4 7 . 2 . . . . . . . Destroy 3 | . . . . 1 . 2 . . . . . . . Blast 9 | . . . 4 5 . . . . . . . . . Impale 1 | . . . . 1 . . . . . . . . . Melee Attacks 54 | . . . . 29 . 2 . . . . . . 23 Impact . | . . . . . . . . . . . . . . Slashing 23 | . . . . . . . . . . . . . 23 Piercing 31 | . . . . 29 . 2 . . . . . . . Sneak Attacks 6 | . . . . . . . . . . . . . 6 Combat Hostiles 1 | . . . . . . . . . . . . . 1 Follow-up Attacks . | . . . . . . . . . . . . . . Damage Inflicted 13562 | 131 1300 2470 2317 2113 20 2807 . 31 811 . . 261 1301 Guns 3376 | 131 217 200 80 523 20 1776 . . . . . 261 168 Cannons 3599 | . . . 2230 296 . 117 . 31 764 . . . 161 Explosions 5161 | . 1083 2270 . 878 . 883 . . 47 . . . . Melee 1413 | . . . . 416 . 31 . . . . . . 966 Ramming 13 | . . . 7 . . . . . . . . . 6 Kinetic 5398 | 131 217 78 2230 819 20 1642 . . . . . 261 . Thermal 798 | . . 91 80 . . 251 . . 47 . . . 329 Explosive 5023 | . 1083 2179 . 878 . 883 . . . . . . . Electromagnetic 917 | . . 122 . . . . . 31 764 . . . . Impact . | . . . . . . . . . . . . . . Slashing 966 | . . . . . . . . . . . . . 966 Piercing 447 | . . . . 416 . 31 . . . . . . . Highest Corruption 26 | . . . . . . 12 12 4 26 26 26 4 18 Average Corruption 15 | . . . . . . 9 12 4 11 26 26 1 13 Corruption Purged . | . . . . . . . . . . . . . . Corruption Blocked . | . . . . . . . . . . . . . . Effects 52 | . . . . . . 11 1 . 9 13 8 . 10 Message Errors 9 | . . . . . . 1 1 . 1 5 1 . . Matter Fused 9 | . . . . . . 2 . . 1 2 2 . 2 Heat Flow Errors 3 | . . . . . . 1 . . . . . . 2 Energy Discharges 9 | . . . . . . 2 . . 2 2 2 . 1 Parts Rejected 1 | . . . . . . 1 . . . . . . . Parts Fused 1 | . . . . . . . . . . . 1 . . Data Loss (minor) 5 | . . . . . . . . . 2 1 1 . 1 Data Loss (major) 5 | . . . . . . 1 . . . 3 1 . . Misfires 2 | . . . . . . . . . 2 . . . . Alerts 1 | . . . . . . . . . . . . . 1 Misdirections 6 | . . . . . . 3 . . . . . . 3 Weapon Failures 1 | . . . . . . . . . 1 . . . . Overload Shots . | . . . . . . . . . . . . . . Overflow Damage 675 | . 30 2 72 23 . 24 . . 3 . . . 521 Projectiles 72 | . . . 72 . . . . . . . . . . Explosions 82 | . 30 2 . 23 . 24 . . 3 . . . . Melee 521 | . . . . . . . . . . . . . 521 Knockbacks 31 | . . . 30 1 . . . . . . . . . Impact . | . . . . . . . . . . . . . . Kinetic 30 | . . . 29 1 . . . . . . . . . Secondary 1 | . . . 1 . . . . . . . . . . Self-Inflicted Damage 258 | . 69 129 . 40 . . . . 17 . . . 3 Shots 10 | . 3 4 . 2 . . . . 1 . . . . Rammed 3 | . . . 2 . . . . . . . . . 1 Targets Rammed 5 | . 1 . 3 . . . . . . . . . 1 Kicked 2 | . 1 . 1 . . . . . . . . . . Crushed . | . . . . . . . . . . . . . . Highest Temperature 451 | . 20 . 331 115 8 350 . 30 336 . 5 100 451 Average Temperature 106 | . 7 . 117 54 6 133 . 20 94 . 3 29 161 Received Heat Transfer 3585 | . 180 225 612 1119 . 990 9 18 144 . . 9 279 Effects 10 | . . . 3 . . 2 . . 2 . . . 3 Shutdowns 2 | . . . . . . . . . 1 . . . 1 Energy Bleed 4 | . . . 3 . . 1 . . . . . . . Matter Decay 3 | . . . . . . 1 . . 1 . . . 1 Damage (minor) 1 | . . . . . . . . . . . . . 1 Siege Activations . | . . . . . . . . . . . . . . Robots Corrupted 2 | . . . . . . . . . 2 . . . . Combat Hostiles 2 | . . . . . . . . . 2 . . . . Parts Fried 11 | . . 3 . . . . . . 8 . . . . Impact Corruptions . | . . . . . . . . . . . . . . Robots Melted . | . . . . . . . . . . . . . . Combat Hostiles . | . . . . . . . . . . . . . . Parts Melted . | . . . . . . . . . . . . . . Heat Transferred 1108 | . . 50 100 . . 575 . . 50 . . . 333 Parts Sabotaged . | . . . . . . . . . . . . . . Parts Stolen . | . . . . . . . . . . . . . . Parts Stripped . | . . . . . . . . . . . . . . Power Chain Reactions 2 | . . 1 . . . . . . 1 . . . . Alert | -11 -10 -10 -8 -7 -6 -6 -6 -5 -4 -4 -4 -3 -2 ------- Run | Yrd Mat Sub Mat Fac Fac Ext Cet Fac Fac Was Fac Res Res Peak Influence 497 | 5 497 . 481 308 149 56 16 63 215 7 . 140 220 Initial 210 | . 3 . . 210 144 . 16 8 30 7 . . . Average 134 | 1 239 . 264 196 100 18 16 19 63 4 . 50 32 Maximum Alert Level 2 | . 2 . 2 1 . . . . 1 . . . 1 Low Security (%) 72 | 100 51 . 35 41 100 100 100 100 99 100 100 100 99 Level 1 21 | . 25 . 45 58 . . . . . . . . . Level 2 6 | . 23 . 18 . . . . . . . . . . Level 3 . | . . . . . . . . . . . . . . Level 4 . | . . . . . . . . . . . . . . Level 5 . | . . . . . . . . . . . . . . High Security . | . . . . . . . . . . . . . . Max Security . | . . . . . . . . . . . . . . Squads Dispatched 19 | . 5 . 2 4 . 2 . 3 . . . 2 1 Investigation 2 | . 1 . . . . 1 . . . . . . . Extermination 4 | . . . . 1 . . . 1 . . . 1 1 Reinforcement 11 | . 4 . 2 1 . 1 . 2 . . . 1 . Assault 1 | . . . . 1 . . . . . . . . . Garrison 1 | . . . . 1 . . . . . . . . . Intercept . | . . . . . . . . . . . . . . Searches Triggered . | . . . . . . . . . . . . . . Construction Impeded 3 | . . . 1 1 . 1 . . . . . . . Haulers Reinforced . | . . . . . . . . . . . . . . Active Scanning Responses . | . . . . . . . . . . . . . . Cargo Convoy Interrupts . | . . . . . . . . . . . . . . Stealth | -11 -10 -10 -8 -7 -6 -6 -6 -5 -4 -4 -4 -3 -2 --------- Run | Yrd Mat Sub Mat Fac Fac Ext Cet Fac Fac Was Fac Res Res Distress Signals 15 | . . . 5 . . 2 1 . 1 . . 2 4 Communications Jammed 1 | . . . . . . . . . . . . . 1 Distress Signals 1 | . . . . . . . . . . . . . 1 Times Spotted 203 | . 28 25 39 22 . 16 4 4 16 1 . 11 37 Peak Tracking Total 15 | . 8 5 7 8 . 8 5 4 5 1 . 6 15 Tactical Retreats 25 | . . . 9 . . 1 . . 3 1 . 3 8 Traps | -11 -10 -10 -8 -7 -6 -6 -6 -5 -4 -4 -4 -3 -2 ------- Run | Yrd Mat Sub Mat Fac Fac Ext Cet Fac Fac Was Fac Res Res Traps Triggered 8 | . 2 . . . . . . . 1 . 1 2 2 Indirectly . | . . . . . . . . . . . . . . Trap Hack Attempts . | . . . . . . . . . . . . . . Triggered . | . . . . . . . . . . . . . . Disarmed . | . . . . . . . . . . . . . . Reprogrammed . | . . . . . . . . . . . . . . Reused . | . . . . . . . . . . . . . . Traps Extracted . | . . . . . . . . . . . . . . Installed . | . . . . . . . . . . . . . . Triggered . | . . . . . . . . . . . . . . Machines | -11 -10 -10 -8 -7 -6 -6 -6 -5 -4 -4 -4 -3 -2 ---------- Run | Yrd Mat Sub Mat Fac Fac Ext Cet Fac Fac Was Fac Res Res Machines Disabled 12 | . 3 . 2 3 . . . . 3 . . . 1 Max in Single Turn 2 | . 1 . 1 1 . . . . 2 . . . 1 Garrison Access 1 | . . . . 1 . . . . . . . . . Machines Repaired . | . . . . . . . . . . . . . . Machines Dismantled . | . . . . . . . . . . . . . . Machines Sabotaged . | . . . . . . . . . . . . . . Overloaded Fab Kills . | . . . . . . . . . . . . . . Hacking | -11 -10 -10 -8 -7 -6 -6 -6 -5 -4 -4 -4 -3 -2 --------- Run | Yrd Mat Sub Mat Fac Fac Ext Cet Fac Fac Was Fac Res Res Machines Accessed 24 | . 4 2 3 3 2 1 . 2 3 . 1 2 1 Terminals 17 | . 3 . 2 2 1 1 . 2 2 . 1 2 1 Fabricators . | . . . . . . . . . . . . . . Repair Stations 2 | . 1 . . . 1 . . . . . . . . Recycling Units . | . . . . . . . . . . . . . . Scanalyzers 3 | . . . 1 1 . . . . 1 . . . . Garrison Access . | . . . . . . . . . . . . . . Total Hacks 57 | . 14 12 8 5 3 2 . 2 5 . 1 4 1 Successful 32 | . 9 12 3 2 1 . . 2 3 . . . . Failed 25 | . 5 . 5 3 2 2 . . 2 . 1 4 1 Catastrophic 7 | . 1 . 2 . . 1 . . 1 . . 2 . Database Lockouts . | . . . . . . . . . . . . . . Manual 29 | . 12 2 6 2 . . . . 1 . 1 4 1 Terminals 37 | . 13 . 6 2 2 2 . 2 4 . 1 4 1 Fabricators . | . . . . . . . . . . . . . . Repair Stations 2 | . 1 . . . 1 . . . . . . . . Recycling Units . | . . . . . . . . . . . . . . Scanalyzers 6 | . . . 2 3 . . . . 1 . . . . Garrison Access . | . . . . . . . . . . . . . . Terminal Hacks 22 | . 4 12 . . 1 . . 2 3 . . . . Record 13 | . . 11 . . . . . 1 1 . . . . Open Door 1 | . . . . . 1 . . . . . . . . Open DSF 1 | . . . . . . . . 1 . . . . . Branch Access Points 1 | . 1 . . . . . . . . . . . . Emergency Access Points 1 | . . . . . . . . . 1 . . . . Terminal Index 1 | . 1 . . . . . . . . . . . . Unreport Threat 1 | . 1 . . . . . . . . . . . . Recall Investigation 1 | . 1 . . . . . . . . . . . . Zone Layout 1 | . . . . . . . . . 1 . . . . Derelict Proto ID Bank 1 | . . 1 . . . . . . . . . . . Fabricator Hacks . | . . . . . . . . . . . . . . Repair Station Hacks . | . . . . . . . . . . . . . . Recycling Unit Hacks . | . . . . . . . . . . . . . . Scanalyzer 4 | . . . 2 2 . . . . . . . . . Insert Component 2 | . . . 1 1 . . . . . . . . . Analyze 2 | . . . 1 1 . . . . . . . . . Garrison Access Hacks . | . . . . . . . . . . . . . . Unauthorized Hacks 6 | . 5 . 1 . . . . . . . . . . Terminals 6 | . 5 . 1 . . . . . . . . . . Track 2 | . 2 . . . . . . . . . . . . Botnet 4 | . 3 . 1 . . . . . . . . . . Fabricators . | . . . . . . . . . . . . . . Repair Stations . | . . . . . . . . . . . . . . Recycling Units . | . . . . . . . . . . . . . . Scanalyzers . | . . . . . . . . . . . . . . Garrison Access . | . . . . . . . . . . . . . . Data Cores Recovered . | . . . . . . . . . . . . . . Used . | . . . . . . . . . . . . . . Hacking Detections 17 | . 4 . 2 2 2 1 . . 3 . . 2 1 Full Trace Events 1 | . . . . . . 1 . . . . . . . Feedback Events . | . . . . . . . . . . . . . . Feedback Blocked . | . . . . . . . . . . . . . . Robot Schematics Acquired . | . . . . . . . . . . . . . . Robots Built . | . . . . . . . . . . . . . . Authchips . | . . . . . . . . . . . . . . Time . | . . . . . . . . . . . . . . Total Robot Build Rating . | . . . . . . . . . . . . . . Part Schematics Acquired 2 | . . . 1 1 . . . . . . . . . Parts Built . | . . . . . . . . . . . . . . Authchips . | . . . . . . . . . . . . . . Time . | . . . . . . . . . . . . . . Total Part Build Rating . | . . . . . . . . . . . . . . Parts Repaired . | . . . . . . . . . . . . . . Time . | . . . . . . . . . . . . . . Parts Recycled . | . . . . . . . . . . . . . . Recycled Matter . | . . . . . . . . . . . . . . Retrieved Matter . | . . . . . . . . . . . . . . Retrieved Components . | . . . . . . . . . . . . . . Parts Scanalyzed 2 | . . . 1 1 . . . . . . . . . Part Schematics Acquired 2 | . . . 1 1 . . . . . . . . . Parts Damaged . | . . . . . . . . . . . . . . Bothacking | -11 -10 -10 -8 -7 -6 -6 -6 -5 -4 -4 -4 -3 -2 ------------ Run | Yrd Mat Sub Mat Fac Fac Ext Cet Fac Fac Was Fac Res Res Used RIF Installer . | . . . . . . . . . . . . . . Robots Hacked . | . . . . . . . . . . . . . . Non-combat . | . . . . . . . . . . . . . . Combat . | . . . . . . . . . . . . . . Robot Hacks Applied . | . . . . . . . . . . . . . . Relay Couplers Released 2 | . . . . 2 . . . . . . . . . Machine Destruction 2 | . . . . 2 . . . . . . . . . Fabnet Peak Effective % . | . . . . . . . . . . . . . . Robots Rewired . | . . . . . . . . . . . . . . Allies Hacked . | . . . . . . . . . . . . . . Hacks Repelled . | . . . . . . . . . . . . . . Allies | -11 -10 -10 -8 -7 -6 -6 -6 -5 -4 -4 -4 -3 -2 -------- Run | Yrd Mat Sub Mat Fac Fac Ext Cet Fac Fac Was Fac Res Res Total Allies . | . . . . . . . . . . . . . . Largest Group . | . . . . . . . . . . . . . . Highest-Rated Group . | . . . . . . . . . . . . . . Highest-Rated Ally . | . . . . . . . . . . . . . . Total Orders . | . . . . . . . . . . . . . . Ally Attacks . | . . . . . . . . . . . . . . Total Damage . | . . . . . . . . . . . . . . Kills . | . . . . . . . . . . . . . . Allies Corrupted . | . . . . . . . . . . . . . . Allies Melted . | . . . . . . . . . . . . . . Intel | -11 -10 -10 -8 -7 -6 -6 -6 -5 -4 -4 -4 -3 -2 ------- Run | Yrd Mat Sub Mat Fac Fac Ext Cet Fac Fac Was Fac Res Res Robot Analysis Total . | . . . . . . . . . . . . . . Derelict Logs Recovered . | . . . . . . . . . . . . . . Drone Launches . | . . . . . . . . . . . . . . Drone Recoveries . | . . . . . . . . . . . . . . Exploration | -11 -10 -10 -8 -7 -6 -6 -6 -5 -4 -4 -4 -3 -2 ------------- Run | Yrd Mat Sub Mat Fac Fac Ext Cet Fac Fac Was Fac Res Res Turns Passed 9906 | 115 1029 2354 1474 1121 578 608 31 308 562 257 259 433 777 Spaces Moved 7309 | 67 656 1662 777 704 439 391 54 190 195 255 312 706 901 Core 735 | 10 . 14 128 . . 93 54 64 . 183 1 . 188 Treads 1219 | . 208 246 355 . . . . 126 195 72 17 . . Legs 2685 | 57 448 1402 294 484 . . . . . . . . . Wheels 957 | . . . . 220 439 298 . . . . . . . Hover 1713 | . . . . . . . . . . . 294 706 713 Flight . | . . . . . . . . . . . . . . Fastest Speed 35 | 50 120 50 50 100 115 50 50 50 170 50 43 35 42 Average Speed 103 | 109 132 125 129 120 115 100 54 129 180 83 58 43 46 Slowest Speed 750 | 120 160 240 250 127 115 145 100 170 250 170 750 48 56 Overloaded Moves . | . . . . . . . . . . . . . . Propulsion Burnouts . | . . . . . . . . . . . . . . Robots Hopped . | . . . . . . . . . . . . . . Cave-ins Triggered 1 | . . . . . . . . . . . . . 1 Exploration Rate (%) 32 | 5 76 72 29 16 9 42 23 6 7 96 7 25 35 Regions Visited 13 Branch Regions 3 Pre-discovered Areas . | . . . . . . . . . . . . . . Known Exits Taken 5 | . 1 . 1 1 1 . . . . . . 1 . Unknown Exits Taken 6 | 1 . 1 . . . 1 1 1 . . 1 . . Scrap Searched 11 | . . 11 . . . . . . . . . . . Spaces Dug 55 | . 22 10 . 8 . . . . . . . . 15 Terrain Destroyed 561 | . 133 294 43 32 . 42 . . . . . . 17 Melee 20 | . . . . 8 . . . . . . . . 12 Projectile 54 | . . . 43 2 . 4 . . . . . . 5 AOE 487 | . 133 294 . 22 . 38 . . . . . . . Terrain Rammed . | . . . . . . . . . . . . . . Walls Destroyed . | . . . . . . . . . . . . . . Machines Disabled . | . . . . . . . . . . . . . . Actions | -11 -10 -10 -8 -7 -6 -6 -6 -5 -4 -4 -4 -3 -2 --------- Run | Yrd Mat Sub Mat Fac Fac Ext Cet Fac Fac Was Fac Res Res Total 9015 | 87 769 1830 1094 876 512 496 55 246 356 301 386 810 1197 Wait 789 | . 50 29 147 31 57 6 . 36 107 8 36 55 227 Move 7297 | 66 655 1661 776 703 438 390 53 189 195 254 311 705 901 Hop . | . . . . . . . . . . . . . . Pick Up 122 | 4 7 11 17 19 7 12 . 5 7 16 4 3 10 Fast Attach 99 | 7 3 2 17 8 1 5 . 10 4 5 14 12 11 Attach 69 | . 1 7 6 8 3 24 . 4 5 8 . 1 2 Detach 16 | 1 1 3 2 1 . 1 1 . 1 . 3 2 . Swap 28 | . 5 3 3 10 1 2 . . 2 . . . 2 Drop 105 | . 5 13 18 18 4 . 1 1 5 10 5 15 10 Fire 409 | 9 41 95 105 49 1 54 . 1 30 . . 15 9 Melee 54 | . . . . 29 . 2 . . . . . . 23 Ram 2 | . . . . . . . . . . . . . 2 Kick 2 | . 1 . 1 . . . . . . . . . . Crush 2 | . . . 2 . . . . . . . . . . Escape Stasis 15 | . . . . . . . . . . . 13 2 . Rewire . | . . . . . . . . . . . . . . Trap . | . . . . . . . . . . . . . . Miscellaneous 6 | . . 6 . . . . . . . . . . . Route ------- -11/Scrapyard -10/Materials (discovered 5 exits: *Mat x2 / *Min x2 / *Sub) -10/Subcaves -8/Materials -7/Factory (discovered 5 exits: *Fac x4 / Sto) -6/Factory -6/Extension (discovered 2 exits: *Fac / [*Cet]) -6/Cetus -5/Factory -4/Factory -4/Waste -4/Factory -3/Research -2/Research (discovered 1 exit: [*Acc]) History --------- Turn | Location | Event 2 | -11/Scrapyard | Met Revision 17 9 | -11/Scrapyard | Discovered new exit (range 15) 116 | -11/Scrapyard | Entered Materials 307 | -10/Materials | Build established: Mutant 412 | -10/Materials | Identified exit to Mines 575 | -10/Materials | Destroyed 8 combat bots 578 | -10/Materials | Discovered new exit (range 6) 676 | -10/Materials | Discovered new exit (range 9) 752 | -10/Materials | Discovered new exit (range 16) 1002 | -10/Materials | Identified exit to Materials 1069 | -10/Materials | Identified exit to Subcaves 1145 | -10/Materials | Entered Subcaves 1353 | -10/Subcaves | Ambushed by swarm of Subdwellers 1588 | -10/Subcaves | Lost 3 allies 1891 | -10/Subcaves | Visited 4L-MR0's lab 2087 | -10/Subcaves | Disturbed a concealed Subdweller 2313 | -10/Subcaves | Ambushed by Subdweller buried in earth 2359 | -10/Subcaves | Ambushed by angry Subdweller bent on revenge 2831 | -10/Subcaves | Core integrity fell below 50% 2949 | -10/Subcaves | Disturbed a concealed Subdweller 3431 | -10/Subcaves | Visited Clippyterm 3434 | -10/Subcaves | Learned 40 Factory zone layouts 3485 | -10/Subcaves | Discovered new exit (range 14) 3488 | -10/Subcaves | Ambushed by Subdwellers from Twisted Machinery 3496 | -10/Subcaves | Core integrity fell below 20% 3499 | -10/Subcaves | Entered Materials 3499 | -8/Materials | Evolved 4 slots: Propulsion x1, Utility x3 4217 | -8/Materials | Build established: Scavenger-Mutant 4450 | -8/Materials | Lost 3 parts (1p1n1u) 4664 | -8/Materials | Discovered new exit (range 14) 4971 | -8/Materials | Identified exit to Factory 4973 | -8/Materials | Entered Factory 4973 | -7/Factory | Evolved 2 slots: Propulsion x1, Utility x1 4974 | -7/Factory | Identified exit to Storage 4974 | -7/Factory | Identified exit to Factory 5701 | -7/Factory | Garrison activated, responded to threat 5704 | -7/Factory | Build established: Mutant 5985 | -7/Factory | Core integrity fell below 50% 6019 | -7/Factory | Lost 7 parts (1p5u1w) 6094 | -7/Factory | Entered another Factory area 6094 | -6/Factory | Evolved 2 slots: Utility x1, Weapon x1 6460 | -6/Factory | Discovered new exit (range 6) 6463 | -6/Factory | Identified exit to Extension 6672 | -6/Factory | Entered Extension 6794 | -6/Extension | Spotted B-75 Beast 6827 | -6/Extension | Destroyed B-75 Beast 6912 | -6/Extension | Lost 8 parts (2p1n3u2w) 6922 | -6/Extension | Disrupted transfer network 6930 | -6/Extension | Spotted B-75 Beast 7069 | -6/Extension | Destroyed B-75 Beast 7181 | -6/Extension | System corruption reached 10% 7210 | -6/Extension | Core integrity fell below 50% 7227 | -6/Extension | Released all parts (5) 7253 | -6/Extension | Core integrity fell below 20% 7257 | -6/Extension | Lost 24 parts (4p5n9u6w) 7260 | -6/Extension | Discovered new exit (range 15) 7261 | -6/Extension | Discovered new exit (range 15) 7280 | -6/Extension | Entered Cetus 7292 | -6/Cetus | Spotted Cetus Guard 7292 | -6/Cetus | Spotted Cetus Guard 7292 | -6/Cetus | Spotted Cetus Guard 7303 | -6/Cetus | Discovered new exit (range 16) 7311 | -6/Cetus | Entered Factory 7311 | -5/Factory | Evolved 2 slots: Propulsion x1, Utility x1 7313 | -5/Factory | Identified exit to DSF 7536 | -5/Factory | Spotted B-75 Beast 7594 | -5/Factory | Discovered new exit (range 10) 7619 | -5/Factory | Entered another Factory area 7619 | -4/Factory | Evolved 2 slots: Power x1, Weapon x1 7749 | -4/Factory | Build established: Tank 8021 | -4/Factory | System corruption reached 10% 8181 | -4/Factory | Sucked down chute 8181 | -4/Factory | Entered Waste 8181 | -4/Waste | The area was eerily silent 8181 | -4/Waste | Released all parts (12) 8199 | -4/Waste | Lost 6 parts (1p2u3w) 8340 | -4/Waste | A Compactor rumbled back to life 8340 | -4/Waste | Spotted C-40 Crusher 8340 | -4/Waste | Crushed by Compactor (1 part destroyed, 2 dropped) 8392 | -4/Waste | Discovered new exit (range 11) 8404 | -4/Waste | Found Prototype Device 8404 | -4/Waste | Identified Exp. Weapon Cycler 8438 | -4/Waste | Entered Factory 8607 | -4/Factory | Spotted B-86 Titan 8687 | -4/Factory | Discovered new exit (range 15) 8697 | -4/Factory | Entered Research 8697 | -3/Research | Evolved 2 slots: Propulsion x2 8788 | -3/Research | Build established: Mutant 9121 | -3/Research | Discovered new exit (range 16) 9129 | -3/Research | Identified exit to Research 9130 | -3/Research | Entered another Research area 9130 | -2/Research | Evolved 2 slots: Propulsion x1, Utility x1 9427 | -2/Research | Discovered new exit (range 13) 9493 | -2/Research | Found Prototype Slashing Weapon 9493 | -2/Research | Identified Centrium Greatsword 9724 | -2/Research | Crushed by falling debris 9744 | -2/Research | System corruption reached 10% 9756 | -2/Research | Spotted B-90 Cyclops 9790 | -2/Research | Spotted B-90 Cyclops 9809 | -2/Research | Released all parts (4) 9823 | -2/Research | Lost 18 parts (2p6n7u3w) 9877 | -2/Research | Core integrity fell below 50% 9892 | -2/Research | Core integrity fell below 20% 9907 | -2/Research | Destroyed by Fusion Bomb Trap Last Messages --------------- Recalibrator. 09812_ Acquired Imp. Antigrav System. 09816_ R-10 Processor collects Adv. Transmission Jammer. 09830_ System corrupted: Component data lost. 09848_ System corrupted: Heat flow error (+237). 09864_ System corrupted: Heat flow error (+236). 09867_ Critical hit (Burn: +37). 09871_ Connecting with Terminal... 09878_ Critical hit (Burn: +37). 09882_ Slammed into U-05 Engineer. 09889_ U-05 Engineer destroyed. 09891_ R-10 Processor collects Corrupted Structural Scanner. 09893_ R-10 Processor collects Terrain Scanner. 09893_ P-80 Master resets R-10 Processor, system corruption cleaned. 09898_ System corrupted: Energy discharge (-30). 09907_ Triggered Fusion Bomb Trap. 09907_ An explosion rips through the floor. Map ----- +----------------------------------------------------+ | ?????????????????????????????????????????????????? | | ?????????????????????????????????????????????????? | | ?????????????????????????????????????????????????? | | ?????????????????????????????????????????????????? | | ?????????????????????????????????????????????????? | | ?????????????????????????????????????????????????? | | ?????????????????????????????????????????????????? | | ?????????????????????????????????????????????????? | | ?????????????????????????????????????????????????? | | ?????????????????????????????????????????????????? | | ?????????????????????????? ??????????????????????? | | ?????????????????????????? ??????????????????????? | | ?????????????????????????? ??????????????????????? | | ?????????????????????????? ??????????????????????? | | ?????????????????????????? ??????????????????????? | | ?????????????????????????? ??????????????????????? | | ?????????????????????????#u??????????????????????? | | ????????????????????????+ ??????????????????????? | | ????????????????????????# ??????????????????????? | | ????????????????????????#R ??????????????????????? | | ????????????????????????# #??????????????????????? | | ????????????????????????# #??????????????????????? | | ??????????############### #??????????????????????? | | ??????????# ## +??????????????????????? | | ???????? ?# ## k#??????????????????????? | | ???????? ?# ## @#??????????????????????? | | ???????# ?# ## #??????????????????????? | | ???????# ?# ## #??#########???????????? | | ???????# ?# ## # [ #?????????? | | ???????# ?? ?# + #????????? | | ???????# ???? ???# # """ """????????????? | | ???????# ######+###### #??""" ???????????????? | | ???????# s #????" ???????????????? | | ???????# #??????????????????????? | | ???????# +??????????????????????? | | ?#####?# #??????????????????????? | | #?# ###+####### #??????????????????????? | | #?# # ???????# #??????????????????????? | | """ #?# # ????????+ +??????????????????????? | | """ #?# #?????????## ##??????????????????????? | | """ #?# #??????????# #???????????????????????? | | #?# #??????????# #???????????????????????? | | #?# #??????????? #???????????????????????? | | #?# #??????????? #???????????????????????? | | #?# #??????????? #???????????????????????? | | #+###### #??????????? #???????????????????????? | | #????????????????????????????????????? | | != #????????????????????????????????????? | | |% #????????????????????????????????????? | | * #????????????????????????????????????? | +----------------------------------------------------+ Best States ------------- Heat Dissipation 51 Energy Generation 46 Energy Capacity 725 Matter Stores 649 Matter Capacity 700 Sight Range 21 Robot Scan Range 16 Terrain Scan Density 310 Jamming Range 16 Power Amplification 30 EM Shielding 2 Armor Coverage 975 Propulsion Shielding 66 Point Defense Rating 240 Evasion (%) 70 Targeting Accuracy 8 Recoil Reduction 5 Offensive Hacking 12 Defensive Hacking 10 Item Schematics ----------------- Lgt. Armor Plating | -8/Materials | Scanalyzed Aluminum Leg | -7/Factory | Scanalyzed Robot Schematics ------------------ None Fabricated ------------ Nothing Alien Tech Used ----------------- None Achievements -------------- I Spy No Signal Quantum Hacking Rockin' Loadout Streaker Challenges ------------ None Game ------ Seed SubdwellerSurgePlating Manual? 0 Play Time 03:22:22 Cumulative 17.7 hours Start 2024.04.06 @ 17:25:10 End 2024.04.06 @ 21:03:10 Sessions 1 Manual Loads 0 Difficulty Rogue Special Mode None Game No. 17 Rogue 13 Adventurer 0 Explorer 4 Win Type - Total 0 Types 0/0/0/0/0/0/0/0/0 Lore% 19 Gallery% 23 Achievement% 23 Wizard Run 0 Options --------- Layout 1 ASCII 0 Keyboard 0 Movement Mouse Keybinds 0 Fullscreen 2 Font 32/SmallcapsGlow Map View 50x35 Zoom Use 0% Tactical HUD 1 Map Filters NONE Filters NONE Steam 1 RUN: 2dd9b2e8-2409-4863-8fe8-3769d6d55b8a